Cogmind - Beta 15 @@@ ROGUE MODE // 2025.08.10 @ 18:42:42 Player: StaticNoob Result: Destroyed by R7-FBQ(R) with Subdweller Shrapnel Launcher Performance ------------- Evolutions (0) 0 Regions Visited (2) 400 Robots Destroyed (28) 140 Value Destroyed (422) 422 Prototype IDs (3) 60 Alien Tech Used (0) 0 Bonus (0) 0 TOTAL SCORE: 1022 Bonus ------- None Cogmind --------- Core Integrity 0/250 Matter 95/300 Energy 122/125 System Corruption 0% Temperature Cool (0) Movement Treading (240) Ox1 Location -10/Subcaves Parts ------- > --- POWER (1) -------- Light Ion Engine > --- PROPULSION (2) --- Light Treads Light Treads > --- UTILITY (2) ------ High-capacity Storage Unit Propulsion Shielding > --- WEAPON (2) ------- Assault Rifle Light Cannon > --- INVENTORY (20) --- Aluminum Leg Wheel Medium Storage Unit Large Battery (200) High-capacity Matter Pod (200) Improved Terrain Scanner ECM Suite Hacking Suite Tractor Beam Small Laser Light Assault Rifle Grenade Launcher Multitool Peak State ------------ > --- POWER ------------ Ion Engine > --- PROPULSION ------- Light Treads Light Treads > --- UTILITY ---------- High-capacity Storage Unit Propulsion Shielding > --- WEAPON ----------- Assault Rifle Light Cannon > --- INVENTORY -------- Light Ion Engine Aluminum Leg Wheel Medium Storage Unit Large Battery High-capacity Matter Pod Improved Terrain Scanner ECM Suite Hacking Suite Tractor Beam Small Laser Light Assault Rifle Light Cannon Grenade Launcher Multitool [Rating: 9] Favorites ----------- Power Ion Engine Engine Ion Engine Propulsion Light Treads Treads Light Treads Wheel Wheel Utility Seismic Detector Device Seismic Detector Storage High-capacity Storage Unit Protection Propulsion Shielding Weapon Assault Rifle Energy Gun Small Laser Ballistic Gun Assault Rifle Ballistic Cannon Light Cannon Launcher Grenade Launcher Build | -11 -10 -10 ------- Run | Yrd Mat Sub Slots Evolved . | . . . Power . | . . . Propulsion . | . . . Utility . | . . . Weapon . | . . . Parts Attached 17 | 7 8 2 Power 2 | 1 . 1 Engine 2 | 1 . 1 Core . | . . . Reactor . | . . . Propulsion 4 | 2 2 . Treads 3 | 2 1 . Leg . | . . . Wheel 1 | . 1 . Hover . | . . . Flight . | . . . Utility 5 | 2 2 1 Device 1 | 1 . . Storage 3 | 1 2 . Processor . | . . . Hackware . | . . . Protection 1 | . . 1 Artifact . | . . . Weapon 6 | 2 4 . Energy Gun 1 | 1 . . Energy Cannon . | . . . Ballistic Gun 2 | 1 1 . Ballistic Cannon 2 | . 2 . Launcher 1 | . 1 . Special Weapon . | . . . Impact Weapon . | . . . Slashing Weapon . | . . . Piercing Weapon . | . . . Special Melee Weapon . | . . . Unidentified Prototypes . | . . . Parts Lost 4 | . 1 3 Power 1 | . . 1 Propulsion 1 | . 1 . Utility 1 | . . 1 Weapon 1 | . . 1 Highest Loss Streak 1 | . 1 1 To Critical Strikes . | . . . Average Backups 11 | 1 9 14 Power . | . 1 . Propulsion 1 | . . 2 Utility 5 | . 4 7 Weapon 3 | . 2 4 Tool/Special . | . . . Unused Backups 10 | . 1 9 Power . | . . . Propulsion 1 | . . 1 Utility 6 | . 1 5 Weapon 2 | . . 2 Tool/Special 1 | . . 1 Average Slot Usage (%) 98 | . 98 99 Engine 13 | . 13 13 Treads 26 | . 25 28 Wheel 1 | . 2 . Device 9 | . 13 5 Storage 14 | . 14 14 Protection 3 | . . 7 Ballistic Gun 14 | . 15 14 Ballistic Cannon 11 | . 10 13 Peak Build Rating 9 | 7 8 9 Average Rating 7 | 5 7 8 On Entrance 5 | . 7 8 Naked Turns . | . . . Heaviest Build 52 | 14 52 52 Greatest Support 40 | 40 40 40 Greatest Overweight (x) 5 | 3 5 1 Average Overweight (x) . | . . 1 Largest Inventory Capacity 20 | 8 20 20 Average Capacity 16 | 7 13 20 Most Carried 15 | 3 15 15 Average Carried 11 | 1 9 14 Final Capacity 20 | 8 20 20 Final Carried 15 | 3 15 13 Class Distribution -------------------- 100% | Mutant Dominant Class ---------------- Mutant | -10/Materials Mutant | -10/Subcaves Resources | -11 -10 -10 ----------- Run | Yrd Mat Sub Matter Collected 1141 | 268 771 102 Remotely . | . . . Salvage Created 813 | 117 680 16 Parts 48 | 7 36 5 Haulers Intercepted 2 | . 2 . Recyclers Shooed 1 | . 1 . Parts Field Recycled . | . . . Retrieved Matter . | . . . Parts Self-Destructed 5 | . . 5 Prevented . | . . . Kills | -11 -10 -10 ------- Run | Yrd Mat Sub Combat Hostiles Destroyed 14 | . 10 4 Guns 3 | . 2 1 Cannons 2 | . 2 . AOE 9 | . 6 3 Classes Destroyed 9 | 2 6 1 Worker 1 | . 1 . Tunneler 2 | 2 . . Hauler 2 | . 2 . Recycler 5 | 1 4 . Operator 1 | . 1 . Watcher 3 | . 3 . Swarmer 9 | . 6 3 Grunt 4 | . 4 . Subdweller 1 | . . 1 Best Kill Streak 6 | 3 6 3 Combat Bots Only 3 | . 3 3 Max Kills in Single Turn 2 | 1 2 1 Gunslinging . | . . . Exploded 2 | . 2 1 Melee . | . . . Uniques/NPCs Destroyed . | . . . Combat | -11 -10 -10 -------- Run | Yrd Mat Sub Hostile Shots Fired 70 | . 34 36 Missed 12 | . 6 6 Hits 58 | . 28 30 Projectile 58 | . 28 30 AOE 3 | . . 3 Critical Strikes 1 | . 1 . Actively Blocked 1 | . . 1 Damage Taken 974 | . 319 655 Core 251 | . 74 177 Absorbed by Shields . | . . . Redirected to Shielding 42 | . . 42 Core Remaining (%) 100 | 100 . . Volleys Fired 80 | 7 52 21 Largest 2 | 2 2 2 Hottest 60 | 60 50 50 Shots Fired 147 | 14 94 39 Gun 86 | 14 54 18 Cannon 52 | . 34 18 Launcher 9 | . 6 3 Special . | . . . Kinetic 131 | 7 88 36 Thermal 7 | 7 . . Explosive 9 | . 6 3 Electromagnetic . | . . . Robot Hit Streak 9 | 4 9 6 Robot Miss Streak 4 | 1 4 3 Penetration Max . | . . . Secondary Targets . | . . . Shots Hit Robots 84 | 9 53 22 Core Hits 39 | 4 29 6 Critical Kills . | . . . Critical Parts Destroyed . | . . . Critical Strikes . | . . . Melee Attacks . | . . . Impact . | . . . Slashing . | . . . Piercing . | . . . Sneak Attacks . | . . . Combat Hostiles . | . . . Follow-up Attacks . | . . . Damage Inflicted 1678 | 103 1157 418 Guns 700 | 103 460 137 Cannons 478 | . 297 181 Explosions 498 | . 398 100 Melee . | . . . Ramming 2 | . 2 . Kinetic 1124 | 49 757 318 Thermal 54 | 54 . . Explosive 498 | . 398 100 Electromagnetic . | . . . Impact . | . . . Slashing . | . . . Piercing . | . . . Highest Corruption . | . . . Average Corruption . | . . . Corruption Purged . | . . . Corruption Blocked . | . . . Overload Shots . | . . . Overflow Damage 17 | . 8 9 Projectiles . | . . . Explosions 17 | . 8 9 Melee . | . . . Knockbacks 7 | . 6 1 Impact . | . . . Kinetic 7 | . 6 1 Secondary . | . . . Self-Inflicted Damage 12 | . . 12 Shots 1 | . . 1 Rammed 1 | . 1 . Targets Rammed 1 | . 1 . Kicked . | . . . Crushed . | . . . Highest Temperature 25 | . 25 . Average Temperature 10 | . 10 . Received Heat Transfer 174 | . 144 30 Siege Activations . | . . . Martial Activations . | . . . Shielding Activations . | . . . Robots Disrupted . | . . . Combat Hostiles . | . . . Robots Corrupted . | . . . Combat Hostiles . | . . . Parts Fried . | . . . Impact Corruptions . | . . . Robots Melted . | . . . Combat Hostiles . | . . . Parts Melted . | . . . Heat Transferred 125 | 125 . . Parts Sabotaged . | . . . Parts Stolen . | . . . Parts Stripped . | . . . Power Chain Reactions . | . . . Alert | -11 -10 -10 ------- Run | Yrd Mat Sub Maximum Alert Level . | . . . Low Security (%) 100 | 100 100 . Level 1 . | . . . Level 2 . | . . . Level 3 . | . . . Level 4 . | . . . Level 5 . | . . . High Security . | . . . Max Security . | . . . Peak Influence 155 | 10 155 . Initial . | . . . Average 58 | 1 64 . Influence Increases 571 | 15 406 150 Destroy 0b10 Robot/C 260 | . 200 60 Destroy 0b10 Robot/NC 70 | 15 55 . Destroy Leader 50 | . 50 . Successful Hack 12 | . 12 . Disable Machine 45 | . 45 . Destroy Structure 44 | . 44 . Lose Combat Pursuer 90 | . . 90 Influence Decreases 571 | 15 345 211 Entered New Map 30 | . . 30 Time Decay 521 | 15 335 171 Lost Part 20 | . 10 10 Squads Dispatched 1 | . 1 . Investigation . | . . . Extermination . | . . . Reinforcement 1 | . 1 . Assault . | . . . Garrison . | . . . Intercept . | . . . Searches Triggered . | . . . Construction Impeded . | . . . Haulers Reinforced . | . . . Active Scanning Responses . | . . . Cargo Convoy Interrupts . | . . . Stealth | -11 -10 -10 --------- Run | Yrd Mat Sub Distress Signals 1 | . 1 . Communications Jammed . | . . . Distress Signals . | . . . Times Spotted 24 | . 17 7 Peak Tracking Total 5 | . 5 3 Tactical Retreats 2 | . . 2 Traps | -11 -10 -10 ------- Run | Yrd Mat Sub Traps Triggered 3 | . 2 1 Indirectly . | . . . Trap Hack Attempts . | . . . Triggered . | . . . Disarmed . | . . . Reprogrammed . | . . . Reused . | . . . Traps Extracted . | . . . Installed . | . . . Triggered . | . . . Machines | -11 -10 -10 ---------- Run | Yrd Mat Sub Machines Disabled 3 | . 3 . Max in Single Turn 1 | . 1 . Machines Repaired . | . . . Machines Dismantled . | . . . Machines Sabotaged . | . . . Overloaded Fab Kills . | . . . Hacking | -11 -10 -10 --------- Run | Yrd Mat Sub Machines Accessed 8 | . 8 . Terminals 7 | . 7 . Fabricators . | . . . Repair Stations . | . . . Recycling Units 1 | . 1 . Scanalyzers . | . . . Garrison Access . | . . . Total Hacks 23 | . 23 . Successful 11 | . 11 . Failed 11 | . 11 . Catastrophic 1 | . 1 . Database Lockouts 1 | . 1 . Manual 19 | . 19 . Terminals 22 | . 22 . Fabricators . | . . . Repair Stations . | . . . Recycling Units 1 | . 1 . Scanalyzers . | . . . Garrison Access . | . . . Terminal Hacks 3 | . 3 . Robot Analysis 1 | . 1 . Prototype ID Bank 2 | . 2 . Fabricator Hacks . | . . . Repair Station Hacks . | . . . Recycling Unit Hacks 1 | . 1 . Retrieve Components 1 | . 1 . Scanalyzer . | . . . Garrison Access Hacks . | . . . Unauthorized Hacks 7 | . 7 . Terminals 7 | . 7 . Botnet 1 | . 1 . Operators 1 | . 1 . Skim 5 | . 5 . Fabricators . | . . . Repair Stations . | . . . Recycling Units . | . . . Scanalyzers . | . . . Garrison Access . | . . . Data Cores Recovered 1 | . 1 . Used . | . . . Hacking Detections 7 | . 7 . Full Trace Events . | . . . Feedback Events . | . . . Feedback Blocked . | . . . Robot Schematics Acquired . | . . . Robots Built . | . . . Authchips . | . . . Time . | . . . Total Robot Build Rating . | . . . Part Schematics Acquired . | . . . Parts Built . | . . . Authchips . | . . . Time . | . . . Total Part Build Rating . | . . . Parts Repaired . | . . . Time . | . . . Parts Recycled . | . . . Recycled Matter . | . . . Retrieved Matter . | . . . Retrieved Components 10 | . 10 . Parts Scanalyzed . | . . . Part Schematics Acquired . | . . . Parts Damaged . | . . . Bothacking | -11 -10 -10 ------------ Run | Yrd Mat Sub Used RIF Installer . | . . . Robots Hacked . | . . . Non-combat . | . . . Combat . | . . . Robot Hacks Applied . | . . . Relay Couplers Released . | . . . Fabnet Peak Effective % . | . . . Robots Rewired . | . . . Allies Hacked . | . . . Hacks Repelled . | . . . Allies | -11 -10 -10 -------- Run | Yrd Mat Sub Total Allies . | . . . Largest Group . | . . . Highest-Rated Group . | . . . Highest-Rated Ally . | . . . Total Orders . | . . . Ally Attacks . | . . . Total Damage . | . . . Kills . | . . . Allies Corrupted . | . . . Allies Melted . | . . . Intel | -11 -10 -10 ------- Run | Yrd Mat Sub Active Infowar (turns) 1219 | 36 863 320 Seismic 1219 | 36 863 320 Robot Analysis Total 1 | . 1 . Derelict Logs Recovered 1 | . . 1 Drone Launches . | . . . Drone Recoveries . | . . . Exploration | -11 -10 -10 ------------- Run | Yrd Mat Sub Turns Passed 1751 | 95 873 783 Spaces Moved 715 | 40 378 297 Core 4 | 4 . . Treads 640 | 36 307 297 Legs . | . . . Wheels 71 | . 71 . Hover . | . . . Flight . | . . . Fastest Speed 50 | 50 110 240 Average Speed 201 | 154 177 240 Slowest Speed 240 | 200 240 240 Overloaded Moves . | . . . Propulsion Burnouts . | . . . Robots Hopped . | . . . Potential Cave-ins . | . . . Cave-ins Triggered . | . . . Exploration Rate (%) 34 | 4 73 27 Regions Visited 2 Branch Regions 1 Pre-discovered Areas 3 | . 3 . Known Exits Taken 1 | . 1 . Unknown Exits Taken 1 | 1 . . Scrap Searched . | . . . Spaces Dug 8 | . 8 . Terrain Destroyed 70 | . 57 13 Melee . | . . . Projectile 1 | . 1 . AOE 69 | . 56 13 Terrain Rammed . | . . . Walls Destroyed . | . . . Machines Disabled . | . . . Actions | -11 -10 -10 --------- Run | Yrd Mat Sub Total 867 | 56 485 326 Wait 21 | . 21 . Move 713 | 39 377 297 Hop . | . . . Pick Up 15 | 3 11 1 Fast Attach 15 | 7 8 . Attach 3 | . . 3 Detach 1 | . 1 . Swap 13 | . 9 4 Drop 5 | . 5 . Fire 80 | 7 52 21 Melee . | . . . Ram . | . . . Kick . | . . . Crush 1 | . 1 . Escape Stasis . | . . . Rewire . | . . . Trap . | . . . Miscellaneous . | . . . Route ------- -11/Scrapyard -10/Materials (discovered 6 exits: *Mat x3 / *Min x2 / *Sub) -10/Subcaves (discovered 3 exits: Mat x2 / Rec) History --------- Turn | Location | Event 45 | -11/Scrapyard | Discovered new exit (range 16) 96 | -11/Scrapyard | Entered Materials 241 | -10/Materials | Discovered new exit (range 4) 318 | -10/Materials | Build established: Mutant 443 | -10/Materials | Learned location of Mines (-9) 477 | -10/Materials | Discovered new exit (range 6) 493 | -10/Materials | Learned 2 Mines zone layouts 535 | -10/Materials | Learned 4 Subcaves zone layouts 568 | -10/Materials | Identified exit to Materials 568 | -10/Materials | Identified exit to Mines 592 | -10/Materials | Identified exit to Subcaves 630 | -10/Materials | Discovered exit to Materials (range 16) 923 | -10/Materials | Central database locked down 969 | -10/Materials | Entered Subcaves 970 | -10/Subcaves | Approached by a straggling Scientist 970 | -10/Subcaves | Identified exit to Materials 1488 | -10/Subcaves | Shifting Twisted Machinery released Multitool 1512 | -10/Subcaves | Shifting Twisted Machinery released Flamer 1548 | -10/Subcaves | Identified exit to Recycling 1610 | -10/Subcaves | Core integrity fell below 50% 1658 | -10/Subcaves | A swath of the cavern ceiling suddenly collapsed 1659 | -10/Subcaves | Core integrity fell below 20% 1752 | -10/Subcaves | Destroyed by R7-FBQ(R) with Subdweller Shrapnel Launcher Last Messages --------------- PF-GRE(c): "I think it's somewhere northeast of here" 01648_ Destroyed Scrap Shield. 01651_ 1W-TOG(R) destroyed. 01656_ Acquired 36 matter. 01658_ 1 Matter crushed. A swath of the cavern ceiling suddenly collapses. 01658_ Triggered Piercing Trap. 01658_ Spikes shoot up from the floor. 01658_ Critical hit (Impale). 01658_ Ion Engine destroyed. 01658_ Critical hit (Impale). 01662_ Subatomizers dissect the Sub. Monowheel. 01666_ Acquired 4 matter. 01669_ Acquired 6 matter. 01676_ Subatomizers dissect the Sub. Monowheel. PF-GRE(c): "I think it's somewhere northeast of here" 01748_ Lgt. Cannon destroyed. Map ----- +----------------------------------------------------+ | ?????????????????????????????????????????????????? | | ???????????????????????????????????